fUST/lending_fUST_20240806
["ID","MTS","AMOUNT","RATE_DAILY","PERIOD"]
[334313889,1722952246786,-87060.37827096,0.00032262,60]
[334313890,1722952246796,-113132.31373748,0.00032262,60]
[334313891,1722952246807,-150.112233,0.000325,7]
[334313892,1722952246817,-150.112233,0.000329,8]
[334313893,1722952246828,-174.8251646,0.00033071,2]
[334313894,1722952246838,-150.112233,0.000332,10]
[334313895,1722952246847,-150.112233,0.000336,5]
[334313896,1722952246857,-183.735228,0.00033626,2]
[334313897,1722952246867,-1787.39362612,0.00033815,2]
[334313898,1722952246876,-150.112233,0.000339,6]
[334313899,1722952246888,-174.8251646,0.00033981,2]
[334313900,1722952246898,-1000.0,0.00034,34]
[334313901,1722952246907,-1588.29777075,0.00034,7]
[334313902,1722952246917,-150.112233,0.000343,5]
[334313903,1722952246927,-152.99335601,0.00034307,2]
[334313904,1722952246937,-500.0,0.00034599,2]
[334313905,1722952246948,-150.112233,0.000346,9]
[334313906,1722952246958,-174.8251646,0.0003489,2]
[334313907,1722952246971,-508.88083062,0.0003489,2]
[334313908,1722952246983,-985.96076987,0.000349,2]
[334313909,1722952246993,-44746.63315549,0.000349,120]
[334313910,1722952247003,-151.0,0.0003498,7]
[334313911,1722952247013,-281.478243,0.0003498,7]
[334313912,1722952247024,-281.478243,0.0003498,7]
[334313913,1722952247034,-151.0,0.0003498,7]
[334313914,1722952247044,-633.135173,0.0003498,7]
[334313915,1722952247054,-633.135173,0.0003498,7]
[334313916,1722952247064,-780.337233,0.0003498,7]
[334313917,1722952247075,-780.337233,0.0003498,7]
[334313918,1722952247085,-3144.859672,0.0003498,7]
[334313919,1722952247095,-151.0,0.0003498,7]
[334313920,1722952247106,-3144.859672,0.0003498,7]
[334313921,1722952247116,-151.0,0.0003498,7]
[334313922,1722952247126,-834.883774,0.0003498,7]
[334313923,1722952247135,-1116.135769,0.0003498,7]
[334313924,1722952247146,-834.883774,0.0003498,7]
[334313925,1722952247158,-1116.135769,0.0003498,7]
[334313926,1722952247168,-673.769564,0.0003498,7]
[334313927,1722952247178,-1417.584944,0.0003498,7]
[334313928,1722952247187,-673.769564,0.0003498,7]
[334313929,1722952247197,-1417.584944,0.0003498,7]
[334313930,1722952247207,-151.0,0.0003498,7]
[334313931,1722952247221,-30142.5251198,0.0003499,4]
[334313932,1722952247237,-151.0,0.0003499,7]
[334313933,1722952247247,-151.0,0.0003499,7]
[334313934,1722952247257,-151.0,0.0003499,7]
[334313935,1722952247266,-151.0,0.0003499,7]
[334313936,1722952247276,-151.0,0.0003499,7]
[334313937,1722952247286,-161.542665,0.0003499,7]
[334313938,1722952247295,-161.542665,0.0003499,7]
[334313939,1722952247306,-714.847458,0.0003499,7]
[334313940,1722952247316,-714.847458,0.0003499,7]
[334313941,1722952247326,-3553.149859,0.0003499,7]
[334313942,1722952247336,-3553.149859,0.0003499,7]
[334313943,1722952247346,-151.0,0.0003499,7]
[334313944,1722952247356,-281.478243,0.0003499,7]
[334313945,1722952247366,-281.478243,0.0003499,7]
[334313946,1722952247376,-152.338537,0.0003499,7]
[334313947,1722952247385,-633.135173,0.0003499,7]
[334313948,1722952247395,-633.135173,0.0003499,7]
[334313949,1722952247405,-780.337233,0.0003499,7]
[334313950,1722952247415,-780.337233,0.0003499,7]
[334313951,1722952247425,-3144.859672,0.0003499,7]
[334313952,1722952247434,-3144.859672,0.0003499,7]
[334313953,1722952247444,-151.0,0.0003499,7]
[334313954,1722952247454,-834.883774,0.0003499,7]
[334313955,1722952247467,-1116.135769,0.0003499,7]
[334313956,1722952247477,-834.883774,0.0003499,7]
[334313957,1722952247487,-1116.135769,0.0003499,7]
[334313958,1722952247496,-673.769564,0.0003499,7]
[334313959,1722952247506,-815.584212,0.0003499,7]
[334313960,1722952247516,-241140.200959,0.0003499,4]
[334313961,1722952247525,-1417.584944,0.0003499,7]
[334313962,1722952247534,-815.584212,0.0003499,7]
[334313963,1722952247544,-673.769564,0.0003499,7]
[334313964,1722952247554,-1417.584944,0.0003499,7]
[334313965,1722952247563,-151.0,0.0003499,7]
[334313966,1722952247572,-151.0,0.0003499,7]
[334313967,1722952247581,-151.0,0.0003499,7]
[334313968,1722952247591,-1065.189804,0.0003499,7]
[334313969,1722952247600,-1728.073458,0.0003499,7]
[334313970,1722952247610,-1065.189804,0.0003499,7]
[334313971,1722952247619,-1728.073458,0.0003499,7]
[334313972,1722952247629,-151.0,0.0003499,7]
[334313973,1722952247638,-151.0,0.0003499,7]
[334313974,1722952247648,-151.0,0.0003499,7]
[334313975,1722952247658,-3060.51531061,0.00035,35]
[334313979,1722952363977,164.354177,0.00014247,2]
[334313991,1722953345111,-294.13159854,0.0002,2]
[334313992,1722953345140,-1209.17410693,0.0002,2]
[334313993,1722953345169,-188.40898191,0.0002,2]
[334313994,1722953357114,-164.354177,0.00021065,2]
[334313995,1722953357137,-164.354177,0.00027884,2]
[334313996,1722953425129,74.86495628,0.00027884,2]
[334314054,1722953438748,-216.30536308,0.00027884,2]
[334314056,1722953438758,-57.97703692,0.00029,30]
[334314064,1722953438853,-442.02296308,0.00029,30]
[334314065,1722953438862,-500.0,0.00029,30]
[334314066,1722953438872,-537.0,0.00029,30]
[334314067,1722953438882,-4774.69181435,0.000299,2]
[334314068,1722953438891,-193.82382534,0.0003,2]
[334314069,1722953438901,-178.701763,0.00031507,120]
[334314070,1722953438910,-1340.54521959,0.00032765,2]
[334314071,1722953438919,-887.36469282,0.00032776,2]
[334314072,1722953438929,-46593.86375683,0.00032856,4]
[334314135,1722953443809,-3141.30269087,0.00032856,4]
[334314136,1722953443819,-1160.86289564,0.00032856,3]
[334314198,1722953463100,164.354177,0.00014247,2]
[334314202,1722953953532,151.0,0.000142,2]
[334314226,1722954425438,164.354177,0.00014247,2]
[334314231,1722954551350,-154.89105218,0.00017269,2]
[334314232,1722954551397,-281.26808939,0.00019547,2]
[334314233,1722954551420,-371.29118168,0.0002217,2]
[334314234,1722954551444,-164.354177,0.00023014,2]
[334314235,1722954551466,-2499.999999,0.0002799,2]
[334314236,1722954551489,-216.465738,0.00029049,2]
[334314237,1722954551510,-151.0,0.0003,120]
[334314292,1722954631975,-178.701763,0.00031507,120]
[334314294,1722954631986,-164.354177,0.00031781,2]
[334314296,1722954631995,-1000.0,0.00032,32]
[334314298,1722954632005,-3000.0,0.000322,11]
[334314299,1722954632015,-3000.0,0.0003221,11]
[334314301,1722954632024,-3000.0,0.0003222,11]
[334314303,1722954632034,-3000.0,0.0003223,11]
[334314304,1722954632044,-3596.645808,0.0003224,11]
[334314306,1722954632053,-500.0,0.00032268,10]
[334314307,1722954632062,-500.0,0.00032268,10]
[334314309,1722954632071,-500.0,0.00032268,10]
[334314311,1722954632080,-500.0,0.00032268,10]
[334314312,1722954632090,-500.0,0.00032268,10]
[334314313,1722954632099,-328.140605,0.00032268,10]
[334314314,1722954632108,-500.0,0.00032268,10]
[334314315,1722954632118,-151.0,0.00032301,120]
[334314316,1722954632127,-306.8241986,0.00032466,2]
[334314317,1722954632137,-1172.97706715,0.00032765,2]
[334314319,1722954632146,-151.95438668,0.00032775,2]
[334314321,1722954632155,-877.89547925,0.00032776,2]
[334314322,1722954632164,-3886.67,0.00032856,3]
[334314324,1722954632173,-4949.03,0.00032856,3]
[334314326,1722954632182,-122916.51318806,0.00032866,4]
[334314328,1722954632202,-11191.0,0.00032866,4]
[334314350,1722954638014,-429.67674639,0.00032775,2]
[334314351,1722954638024,-3308.74038289,0.00032865,21]
[334314352,1722954638034,-77652.24045394,0.00032866,4]
[334314353,1722954638043,-500.0,0.00032875,2]
[334314354,1722954638053,-451.19652838,0.00032875,2]
[334314355,1722954638063,-524.4,0.00032876,14]
[334314356,1722954638072,-500.0,0.00032876,14]
[334314357,1722954638081,-500.0,0.00032876,14]
[334314358,1722954638091,-500.0,0.00032876,14]
[334314359,1722954638100,-500.0,0.00032876,14]
[334314360,1722954638109,-4397.72877793,0.00032876,21]
[334314361,1722954638122,-473.21000055,0.00032876,21]
[334314391,1722954643207,-8.25262544,0.00032865,2]
[334314392,1722954643219,-491.74737456,0.00032865,2]
[334314393,1722954643228,-500.0,0.00032865,2]
[334314394,1722954643238,-133.47262544,0.00032865,2]
[334314395,1722954643256,-366.52737456,0.00032865,2]
[334314396,1722954643266,-500.0,0.00032865,2]
[334314397,1722954643276,-500.0,0.00032865,2]
[334314398,1722954643285,-248.20279132,0.00032865,2]
[334314399,1722954643296,-500.0,0.00032865,2]
[334314400,1722954643305,-500.0,0.00032865,2]
[334314401,1722954643316,-592.91103756,0.00032865,2]
[334314402,1722954643327,-500.0,0.00032865,2]
[334314403,1722954643337,-500.0,0.00032865,2]
[334314404,1722954643347,-15100.09030769,0.00032876,21]
[334314426,1722954647397,-5050.8,0.00032856,3]
[334314427,1722954647406,-1626.41727878,0.00032876,21]
[334314428,1722954647416,-500.0,0.00032876,14]
[334314429,1722954647425,-500.0,0.00032876,14]
[334314430,1722954647435,-151.0,0.00032876,7]
[334314431,1722954647444,-151.0,0.00032876,7]
[334314432,1722954647454,-151.0,0.00032876,7]
[334314433,1722954647463,-151.0,0.00032876,7]
[334314434,1722954647473,-151.0,0.00032876,7]
[334314435,1722954647484,-151.0,0.00032876,7]
[334314436,1722954647497,-151.0,0.00032876,7]
[334314437,1722954647509,-151.0,0.00032876,7]
[334314438,1722954647518,-151.0,0.00032876,7]
[334314439,1722954647528,-151.0,0.00032876,7]
[334314440,1722954647537,-151.0,0.00032876,7]
[334314441,1722954647546,-151.0,0.00032876,7]
[334314442,1722954647556,-151.0,0.00032876,7]
[334314443,1722954647568,-151.0,0.00032876,7]
[334314444,1722954647577,-151.0,0.00032876,7]
[334314445,1722954647587,-151.0,0.00032876,7]
[334314446,1722954647597,-151.0,0.00032876,7]
[334314447,1722954647607,-151.0,0.00032876,7]
[334314448,1722954647617,-181.058956,0.00032876,7]
[334314449,1722954647626,-310.0,0.00032876,30]
[334314450,1722954647636,-447.862561,0.00032876,30]
[334314451,1722954647647,-500.0,0.00032876,14]
[334314452,1722954647656,-500.0,0.00032876,14]
[334314453,1722954647666,-151.0,0.00032876,7]
[334314454,1722954647675,-151.0,0.00032876,7]
[334314455,1722954647684,-151.0,0.00032876,7]
[334314456,1722954647694,-151.0,0.00032876,7]
[334314457,1722954647703,-151.0,0.00032876,7]
[334314458,1722954647712,-151.0,0.00032876,7]
[334314459,1722954647722,-151.0,0.00032876,7]
[334314460,1722954647731,-151.0,0.00032876,7]
[334314461,1722954647743,-243.274367,0.00032876,7]
[334314462,1722954647753,-325.93876114,0.00032876,14]
[334314463,1722954647762,-549.54228233,0.00032876,14]
[334314464,1722954647771,-500.0,0.00032876,14]
[334314465,1722954647780,-500.0,0.00032876,14]
[334314466,1722954647789,-500.0,0.00032876,14]
[334314467,1722954647799,-518.34125957,0.00032876,14]
[334314468,1722954647808,-500.0,0.00032876,14]
[334314469,1722954647818,-682.59,0.00032876,14]
[334314470,1722954647830,-500.0,0.00032876,14]
[334314471,1722954647840,-500.0,0.00032876,14]
[334314472,1722954647850,-500.55133553,0.00032876,14]
[334314473,1722954647860,-500.0,0.00032876,14]
[334314474,1722954647870,-500.0,0.00032876,14]
[334314475,1722954647880,-500.0,0.00032876,14]
[334314476,1722954647889,-500.0,0.00032876,14]
[334314477,1722954647899,-500.0,0.00032876,14]
[334314478,1722954647908,-500.0,0.00032876,14]
[334314479,1722954647917,-500.0,0.00032876,14]
[334314480,1722954647927,-500.0,0.00032876,14]
[334314481,1722954647936,-500.0,0.00032876,14]
[334314482,1722954647945,-500.0,0.00032876,14]
[334314483,1722954647955,-643.34770432,0.00032876,14]
[334314484,1722954647964,-500.0,0.00032876,14]
[334314485,1722954647973,-500.0,0.00032876,14]
[334314486,1722954647982,-500.61682101,0.00032876,14]
[334314487,1722954647993,-500.0,0.00032876,14]
[334314488,1722954648008,-500.0,0.00032876,14]
[334314489,1722954648017,-500.0,0.00032876,14]
[334314490,1722954648027,-500.0,0.00032876,14]
[334314491,1722954648036,-501.48224615,0.00032876,14]
[334314492,1722954648045,-500.0,0.00032876,14]
[334314493,1722954648054,-500.0,0.00032876,14]
[334314494,1722954648063,-500.0,0.00032876,14]
[334314495,1722954648073,-638.89,0.00032876,14]
[334314496,1722954648082,-500.0,0.00032876,14]
[334314497,1722954648092,-500.0,0.00032876,14]
[334314498,1722954648102,-151.431223,0.00032876,7]
[334314499,1722954648111,-500.7245897,0.00032876,14]
[334314500,1722954648121,-243.34959414,0.00032876,14]
[334314501,1722954648132,-500.0,0.00032876,14]
[334314502,1722954648141,-500.0,0.00032876,14]
[334314503,1722954648151,-500.0,0.00032876,14]
[334314504,1722954648160,-500.0,0.00032876,14]
[334314505,1722954648169,-500.36229184,0.00032876,14]
[334314506,1722954648179,-500.0,0.00032876,14]
[334314507,1722954648188,-500.0,0.00032876,14]
[334314508,1722954648197,-2087.01,0.00032876,14]
[334314509,1722954648206,-180.24915365,0.00032876,14]
[334314510,1722954648215,-500.0,0.00032876,14]
[334314511,1722954648224,-612.51,0.00032876,14]
[334314512,1722954648233,-501.29406811,0.00032876,14]
[334314513,1722954648246,-500.0,0.00032876,14]
[334314514,1722954648257,-500.0,0.00032876,14]
[334314515,1722954648267,-151.0,0.00032876,7]
[334314516,1722954648276,-151.0,0.00032876,7]
[334314517,1722954648285,-151.0,0.00032876,7]
[334314518,1722954648295,-152.4342,0.00032876,7]
[334314519,1722954648304,-500.0,0.00032876,14]
[334314520,1722954648314,-156.30463717,0.00032876,14]
[334314521,1722954648323,-1100.0,0.00032876,20]
[334314522,1722954648332,-500.0,0.00032876,14]
[334314523,1722954648342,-500.60356023,0.00032876,3]
[334314524,1722954648351,-1429.29,0.00032876,14]
[334314525,1722954648362,-500.0,0.00032876,14]
[334314526,1722954648371,-500.0,0.00032876,14]
[334314527,1722954648380,-500.0,0.00032876,14]
[334314528,1722954648389,-500.0,0.00032876,14]
[334314529,1722954648398,-500.0,0.00032876,14]
[334314530,1722954648407,-500.0,0.00032876,14]
[334314531,1722954648417,-961.92,0.00032876,14]
[334314532,1722954648426,-151.0,0.00032876,7]
[334314533,1722954648436,-500.0,0.00032876,2]
[334314534,1722954648444,-151.0,0.00032876,7]
[334314535,1722954648454,-151.0,0.00032876,7]
[334314536,1722954648463,-151.0,0.00032876,7]
[334314537,1722954648472,-205.343859,0.00032876,7]
[334314538,1722954648482,-225.05,0.00032876,7]
[334314539,1722954648494,-500.81185369,0.00032876,14]
[334314540,1722954648504,-502.64100716,0.00032876,14]
[334314541,1722954648514,-500.0,0.00032876,14]
[334314542,1722954648523,-805.31,0.00032876,14]
[334314543,1722954648533,-218.75054962,0.00032876,14]
[334314544,1722954648542,-500.0,0.00032876,14]
[334314545,1722954648555,-594.55,0.00032876,14]
[334314546,1722954648576,-500.0,0.00032876,14]
[334314547,1722954648594,-500.0,0.00032876,14]
[334314548,1722954648604,-609.4412373,0.00032876,14]
[334314549,1722954648614,-500.63157511,0.00032876,14]
[334314550,1722954648623,-500.0,0.00032876,14]
[334314551,1722954648633,-500.0,0.00032876,14]
[334314552,1722954648643,-500.0,0.00032876,14]
[334314553,1722954648652,-500.0,0.00032876,14]
[334314554,1722954648664,-500.0,0.00032876,14]
[334314555,1722954648674,-507.36707737,0.00032876,14]
[334314556,1722954648683,-500.0,0.00032876,14]
[334314557,1722954648692,-504.08,0.00032876,14]
[334314558,1722954648702,-151.0,0.00032876,7]
[334314559,1722954648711,-151.779904,0.00032876,7]
[334314560,1722954648720,-150.0,0.00032876,14]
[334314561,1722954648730,-500.0,0.00032876,14]
[334314562,1722954648740,-153.15863819,0.00032876,14]
[334314563,1722954648752,-500.0,0.00032876,14]
[334314564,1722954648761,-500.0,0.00032876,14]
[334314565,1722954648770,-500.0,0.00032876,14]
[334314566,1722954648779,-500.0,0.00032876,14]
[334314567,1722954648788,-500.0,0.00032876,14]
[334314568,1722954648798,-500.0,0.00032876,14]
[334314569,1722954648808,-500.0,0.00032876,14]
[334314570,1722954648817,-636.54,0.00032876,14]
[334314571,1722954648828,-320.318943,0.00032876,7]
[334314572,1722954648838,-320.318943,0.00032876,7]
[334314573,1722954648847,-320.318943,0.00032876,7]
[334314574,1722954648857,-320.318943,0.00032876,7]
[334314575,1722954648866,-320.318943,0.00032876,7]
[334314576,1722954648876,-500.0,0.00032876,14]
[334314577,1722954648896,-320.318943,0.00032876,7]
[334314578,1722954648906,-320.318943,0.00032876,7]
[334314579,1722954648916,-320.318943,0.00032876,7]
[334314580,1722954648925,-500.0,0.00032876,14]
[334314581,1722954648935,-528.09,0.00032876,14]
[334314582,1722954648945,-320.318943,0.00032876,7]
[334314583,1722954648955,-320.318943,0.00032876,7]
[334314584,1722954648965,-320.318943,0.00032876,7]
[334314585,1722954648975,-320.318943,0.00032876,7]
[334314586,1722954648985,-320.318943,0.00032876,7]
[334314587,1722954648999,-320.318943,0.00032876,7]
[334314588,1722954649009,-320.318943,0.00032876,7]
[334314589,1722954649020,-320.318943,0.00032876,7]
[334314590,1722954649029,-500.0,0.00032876,14]
[334314591,1722954649039,-320.318943,0.00032876,7]
[334314592,1722954649049,-500.0,0.00032876,14]
[334314593,1722954649058,-500.0,0.00032876,14]
[334314594,1722954649069,-320.318943,0.00032876,7]
[334314595,1722954649079,-320.318943,0.00032876,7]
[334314596,1722954649089,-320.318935,0.00032876,7]
[334314597,1722954649099,-397.73370292,0.00032876,14]
[334314598,1722954649109,-500.0,0.00032876,14]
[334314599,1722954649120,-500.0,0.00032876,14]
[334314600,1722954649130,-500.0,0.00032876,14]
[334314601,1722954649140,-500.0,0.00032876,14]
[334314602,1722954649150,-151.0,0.00032876,7]
[334314603,1722954649160,-151.0,0.00032876,7]
[334314604,1722954649169,-500.0,0.00032876,14]
[334314605,1722954649179,-151.0,0.00032876,7]
[334314606,1722954649189,-151.0,0.00032876,7]
[334314607,1722954649198,-151.0,0.00032876,7]
[334314608,1722954649208,-521.48,0.00032876,14]
[334314609,1722954649219,-151.0,0.00032876,7]
[334314610,1722954649229,-151.0,0.00032876,7]
[334314611,1722954649239,-500.0,0.00032876,14]
[334314612,1722954649261,-151.0,0.00032876,7]
[334314613,1722954649271,-500.0,0.00032876,14]
[334314614,1722954649280,-151.0,0.00032876,7]
[334314615,1722954649290,-537.34,0.00032876,14]
[334314616,1722954649300,-151.0,0.00032876,7]
[334314617,1722954649310,-151.570895,0.00032876,7]
[334314618,1722954649320,-401.30814953,0.00032876,14]
[334314619,1722954649329,-500.21132177,0.00032876,14]
[334314620,1722954649613,-500.0,0.00032876,14]
[334314621,1722954649623,-500.0,0.00032876,14]
[334314622,1722954649632,-500.0,0.00032876,14]
[334314623,1722954649644,-500.0,0.00032876,14]
[334314624,1722954649659,-500.0,0.00032876,14]
[334314625,1722954649669,-500.0,0.00032876,14]
[334314626,1722954649679,-500.0,0.00032876,14]
[334314627,1722954649688,-500.0,0.00032876,14]
[334314628,1722954649706,-500.0,0.00032876,14]
[334314629,1722954649716,-500.0,0.00032876,14]
[334314630,1722954649726,-390.86600594,0.00032876,14]
[334314631,1722954649736,-500.0,0.00032876,14]
[334314632,1722954649749,-500.0,0.00032876,14]
[334314633,1722954649758,-743.99,0.00032876,14]
[334314634,1722954649768,-500.0,0.00032876,14]
[334314635,1722954649778,-500.0,0.00032876,14]
[334314636,1722954649787,-500.0,0.00032876,14]
[334314637,1722954649797,-500.0,0.00032876,14]
[334314638,1722954649807,-500.0,0.00032876,14]
[334314639,1722954649817,-500.0,0.00032876,14]
[334314640,1722954649828,-500.0,0.00032876,14]
[334314641,1722954649839,-500.0,0.00032876,14]
[334314642,1722954649850,-500.0,0.00032876,14]
[334314643,1722954649860,-605.07,0.00032876,14]
[334314644,1722954649869,-500.0,0.00032876,14]
[334314645,1722954649879,-500.0,0.00032876,14]
[334314646,1722954649889,-500.0,0.00032876,14]
[334314647,1722954649897,-130.51176858,0.00032876,14]
[334314648,1722954704063,286.500631,0.00030989,2]
[334314649,1722954715009,668.28805635,0.00021916,2]
[334314650,1722954733782,403.81861762,0.00021916,2]
[334314651,1722954737670,376.7846896,0.00021916,2]
[334314652,1722954742200,539.1682368,0.00021916,2]
[334314653,1722954745632,154.91162192,0.00021916,2]
[334314654,1722954747218,154.89923821,0.00021916,2]
[334314669,1722954904691,187.4999167,0.00014247,2]
[334314670,1722954934718,2775.58108794,0.00014247,2]
[334314675,1722955436804,164.354177,0.00014247,2]
[334314677,1722955641121,-403.6648833,0.00020721,2]
[334314678,1722955641143,-34.08811605,0.00020721,2]
[334314679,1722955746144,-739.83064685,0.00020721,2]
[334314680,1722955746295,-886.21126428,0.00020721,2]
[334314681,1722955746318,-164.354177,0.00024475,2]
[334314682,1722955746345,-646.21188234,0.00025116,2]
[334314683,1722955746366,-245.66349432,0.00028869,2]
[334314684,1722955746388,-151.0,0.0003,120]
[334314685,1722955783749,254.6350379,0.00025116,2]
[334314697,1722955832155,-178.701765,0.00031507,120]
[334314699,1722955832166,-731.998235,0.000319,2]
[334314701,1722955832184,-370.3939847,0.000319,2]
[334314703,1722955832200,-70.58484745,0.000319,2]
[334314705,1722955832209,-35191.10352427,0.00032,5]
[334314707,1722955832218,-4288.8291344,0.00032,5]
[334314709,1722955832227,-150.0,0.000322,11]
[334314711,1722955832238,-10000.00030994,0.00032279,2]
[334314712,1722955832247,-151.0,0.00032301,120]
[334314714,1722955832257,-877.89547925,0.00032776,2]
[334314716,1722955832266,-2048.26455423,0.00032776,2]
[334314718,1722955832276,-14408.87486856,0.000328,4]
[334314720,1722955832286,-9675.15488678,0.00032866,4]
[334314722,1722955832296,-683.13,0.00032866,3]
[334314723,1722955832306,-1722.58444826,0.00032866,3]
[334314776,1722955838216,-3959.03555174,0.00032866,3]
[334314777,1722955838225,-2791.87444826,0.00032866,3]
[334314784,1722955840710,-1942.80555174,0.00032866,3]
[334314785,1722955840720,-500.0,0.00032875,2]
[334314786,1722955840730,-500.0,0.00032875,2]
[334314787,1722955840739,-500.0,0.00032875,2]
[334314788,1722955840749,-47.64147799,0.00032875,2]
[334314823,1722955843157,-326.10047593,0.00032875,2]
[334314824,1722955843166,-500.0,0.00032875,2]
[334314825,1722955843176,-500.0,0.00032875,2]
[334314826,1722955843189,-500.0,0.00032875,2]
[334314827,1722955843198,-500.0,0.00032875,2]
[334314828,1722955843207,-515.03772629,0.00032875,2]
[334314829,1722955843217,-500.0,0.00032875,2]
[334314830,1722955843226,-500.0,0.00032875,2]
[334314831,1722955843237,-500.0,0.00032875,2]
[334314832,1722955843247,-500.0,0.00032875,2]
[334314833,1722955843256,-550.0,0.00032875,2]
[334314834,1722955843266,-14951.95210547,0.00032876,21]
[334314850,1722955847057,-3396.81623085,0.00032876,21]
[334314851,1722955847067,-1654.37019144,0.00032876,21]
[334314852,1722955847077,-500.0,0.00032876,14]
[334314853,1722955847090,-212.81357772,0.00032876,14]
[334314854,1722955847102,-288.63181647,0.00032876,14]
[334314855,1722955847114,-500.0,0.00032876,14]
[334314856,1722955847123,-256.73327862,0.00032876,14]
[334314865,1722956428565,164.354177,0.00014247,2]
[334314877,1722956830106,-379.40969778,0.00020721,2]
[334314878,1722956830128,-89.00683459,0.00020721,2]
[334314879,1722956832130,-137.65785356,0.00020721,2]
[334314880,1722956832152,-154.59033561,0.00021906,2]
[334314881,1722956832175,-164.354177,0.00026521,2]
[334314882,1722956832204,-317.72521,0.00029733,2]
[334314883,1722956832233,-286.500631,0.00030004,2]
[334314884,1722956832259,-479.0627733,0.00030149,2]
[334314885,1722956832287,-190.64,0.0003063,120]
[334314886,1722956832312,-178.701765,0.00031507,120]
[334314887,1722956832338,-1000.0,0.00032,32]
[334314888,1722956832361,-366.4812016,0.00032055,2]
[334314889,1722956832393,-306.0635694,0.00032055,2]
[334314890,1722956832417,-3000.0,0.000321,10]
[334314891,1722956832444,-496.51323106,0.0003211,10]
[334314893,1722956849506,-192.46695274,0.00021916,2]
[334314894,1722956849529,-2503.48676894,0.0003211,10]
[334314895,1722956849552,-389.23133802,0.0003212,10]
[334314903,1722956949142,-188.40898191,0.0002,2]
[334314904,1722956949165,-71.45370227,0.00021642,2]
[334314905,1722956951089,-150.55844172,0.00021642,2]
[334314909,1722956961928,1090.13398827,0.00021916,2]
[334314936,1722957033783,-2610.76866198,0.0003212,10]
[334314938,1722957033794,-189.55103082,0.0003212,4]
[334314940,1722957033803,-194.4803072,0.0003213,10]
[334314942,1722957033816,-2805.5196928,0.0003213,10]
[334314944,1722957033825,-1219.4803072,0.0003214,10]
[334315000,1722957038410,-2227.1655008,0.0003214,10]
[334315001,1722957038420,-378.25848204,0.000325,2]
[334315023,1722957040647,-621.74151796,0.000325,2]
[334315024,1722957040656,-151.95438668,0.00032773,2]
[334315025,1722957040666,-1085.44638316,0.00032774,2]
[334315026,1722957040680,-663.35771221,0.00032775,2]
[334315027,1722957042490,153.0,0.00028127,2]
[334315071,1722957043501,-422.08867092,0.00032775,2]
[334315072,1722957043510,-1085.44638313,0.00032775,2]
[334315073,1722957043520,-1085.44638313,0.00032776,2]
[334315074,1722957043529,-200.0,0.00032776,2]
[334315075,1722957043539,-940.83074694,0.00032776,2]
[334315076,1722957043549,-1085.44638313,0.00032776,2]
[334315077,1722957043558,-3532.95,0.00032856,3]
[334315078,1722957043567,-1423.63615197,0.00032856,3]
[334315079,1722957043602,-15.10008215,0.00032856,3]
[334315084,1722957045889,153.0,0.00028127,2]
[334315104,1722957046106,153.0,0.00028127,2]
[334315105,1722957046324,153.0,0.00028127,2]
[334315106,1722957047139,153.0,0.00028127,2]
[334315107,1722957047353,153.0,0.00028127,2]
[334315117,1722957047567,153.0,0.00028127,2]
[334315126,1722957047789,153.0,0.00028127,2]